{"text_format":"1","workbook":"xlsx","n_sheets":1,"sheets":["Sheet1"],"not_rendered":{"charts":0,"images":0,"macros":1,"external_links":0,"defined_names":0,"comments":0,"pivot_tables":0},"unopened":[],"bounds":{"document_bytes":16777216,"sheet_cells":100000,"rows_first":2000,"rows_last":500,"rows_between":2000,"halvings":0,"cell_chars":16384,"cell_head_chars":4096},"cells_cut":0,"cells_raw":0,"read":"whole","date_system":"1900"}

{"sheet":"Sheet1","index":0,"n_rows":115,"n_cols":5,"rows_kept":115,"cut":false,"hidden":false,"merged":[[37,0,37,1],[21,1,21,4],[22,1,22,4],[23,1,23,4],[32,0,32,1],[33,0,33,1],[34,0,34,1],[35,0,35,1],[36,0,36,1],[49,0,49,1],[38,0,38,1],[39,0,39,1],[40,0,40,1],[41,0,41,1],[42,0,42,1],[43,0,43,1],[44,0,44,1],[45,0,45,1],[46,0,46,1],[47,0,47,1],[48,0,48,1],[61,0,61,1],[50,0,50,1],[51,0,51,1],[52,0,52,1],[53,0,53,1],[54,0,54,1],[55,0,55,1],[56,0,56,1],[57,0,57,1],[58,0,58,1],[59,0,59,1],[60,0,60,1],[73,0,73,1],[62,0,62,1],[63,0,63,1],[64,0,64,1],[65,0,65,1],[66,0,66,1],[67,0,67,1],[68,0,68,1],[69,0,69,1],[70,0,70,1],[71,0,71,1],[72,0,72,1],[75,0,75,1],[76,0,76,1],[77,0,77,1],[78,0,78,1],[79,0,79,1],[93,2,93,4],[99,0,99,1],[89,0,89,1],[90,0,90,1],[91,0,91,1],[92,0,92,1],[93,0,93,1],[94,0,94,1],[103,0,103,1],[104,0,104,1],[105,0,105,1],[95,0,95,1],[96,0,96,1],[97,0,97,1],[112,0,112,1],[24,3,24,4],[25,3,25,4],[26,3,26,4],[27,3,27,4],[99,2,99,4],[103,2,103,4],[106,0,106,1],[107,0,107,1],[108,0,108,1],[109,0,109,1],[110,0,110,1],[111,0,111,1],[100,0,100,1],[101,0,101,1],[102,0,102,1],[1,0,1,4],[74,2,74,4],[79,2,79,4],[88,2,88,4],[69,2,69,4],[84,2,84,4],[86,0,86,1],[87,0,87,1],[88,0,88,1],[80,0,80,1],[81,0,81,1],[82,0,82,1],[83,0,83,1],[84,0,84,1],[85,0,85,1],[74,0,74,1]]}
[null,"Shoestring Catering Order Form"]
["Catering Phone:  515-271-3518        Fax:  515-271-4664"]
[]
["Thank you for choosing Shoestring Catering via Sodexo.  Please fill out all information below fully."]
[]
["Shoestring Catering is a low-cost, no-frills segment of Flavours Catering which is only available to campus"]
["departments and student organizations in search of casual meeting options.  Note that orders are to be "]
["PICKED UP from Upper Olmsted Kitchen (Sodexo will have your food ready for you when you indicate)."]
[]
["In order to qualify for Shoestring prices, these guidelines need to be followed:"]
["         1.  Orders must be submitted a minimum of five (5) business days prior to the event.  We strongly"]
["               encourage orders to be placed as far in advance as possible.  Orders not placed within the 5-day"]
["               minimum are not guaranteed."]
["         2.  If not billing to a campus account, payment is due before or at the time of pickup."]
[]
["Please note that orders are not approved/confirmed until you receive a confirmation email from your"]
["department Budget Manager and Sodexo Catering."]
[]
["If you have not received a reply within three (3) business days, please contact Brett.Lindman@drake.edu "]
["with Sodexo."]
[]
["Department or Organization:"]
["Name of Person Placing Order:"]
["Purpose/Name of Event:"]
["Event Location/Building:",null,"Room #:"]
["Event Date:",null,"# of Guests:"]
["Pick up Time:",null,"Event Start Time:"]
["Contact Phone #:",null,"Event End Time:"]
["Email:"]
["Payment Method: (check one)"]
[]
[]
[" PLATTERS ",null,"PRICE ","QTY. ","TOTAL "]
["Fresh Fruit Tray ",null,"$1.85/person ",null,{"$f":"D34*1.85","v":0}]
["Vegetable Tray with Dip ",null,"$1.50/person ",null,{"$f":"D35*1.5","v":0}]
["Cheese & Crackers ",null,"$1.75/person ",null,{"$f":"D36*1.75","v":0}]
["Tossed Salad with Dressing ",null,"$1.25/person ",null,{"$f":"D37*1.25","v":0}]
["NIBBLES ",null,"PRICE ","QTY. ","TOTAL "]
["Pretzels (1 lb. Bag, 15 Servings) ",null,"$7.50 ",null,{"$f":"D39*7.5","v":0}]
["Potato Chips (1 lb. Bag, 15 Servings)",null,"$7.50 ",null,{"$f":"D40*7.5","v":0}]
["Tortilla Chips with Salsa (20 Servings / 2 Bags of Chips) ",null,"$15.00 ",null,{"$f":"D41*15","v":0}]
["Popcorn (15 Servings) ",null,"$7.00 ",null,{"$f":"D42*7","v":0}]
["     Add M&Ms to Popcorn Mix ",null,"$1.00 ",null,{"$f":"D43*1","v":0}]
["HOT SNACKS ",null,"PRICE ","QTY. ","TOTAL "]
["Fried Chicken Wings with Sauces (2 Dozen Minimum) ",null,"$9.00/dozen ",null,{"$f":"D45*9","v":0}]
["Mozzarella Sticks with Marinara (2 Dozen Minimum) ",null,"$9.00/dozen ",null,{"$f":"D46*9","v":0}]
["Chicken Fingers with Dipping Sauce (2 Dozen Minimum) ",null,"$12.00/dozen ",null,{"$f":"D47*12","v":0}]
["Mini Egg Rolls with Dipping Sauce (2 Dozen Minimum) ",null,"$12.00/dozen ",null,{"$f":"D48*12","v":0}]
["Mini Meatballs in Marinara (4 Dozen Minimum) ",null,"$6.00/dozen ",null,{"$f":"D49*6","v":0}]
["BREAKFAST ",null,"PRICE ","QTY. ","TOTAL "]
["Donuts (1 Dozen) ",null,"$9.00/dozen ",null,{"$f":"D51*9","v":0}]
["Bagels with Cream Cheese (1 Dozen) ",null,"$15.00/dozen ",null,{"$f":"D52*15","v":0}]
["Mini Muffins (1 Dozen) ",null,"$7.00/dozen ",null,{"$f":"D53*7","v":0}]
["QUICK MEALS (10 PERSON MINIMUM) ",null,"PRICE ","QTY. ","TOTAL "]
["Hot Dogs, Buns, Condiments (Includes Lettuce, Tomato, Cheese, Onion) ",null,"$3.00/person ",null,{"$f":"D55*3","v":0}]
["Hamburgers, Buns, Condiments (Includes Lettuce, Tomato, Cheese, Onion) ",null,"$3.00/person ",null,{"$f":"D56*3","v":0}]
["Box Lunch (Sandwich, Chips, Cookie, 12 oz Soda) ",null,"$7.50/person ",null,{"$f":"D57*7.5","v":0}]
["Specialty Wraps:  Veggie ",null,"$3.75/each ",null,{"$f":"D58*3.75","v":0}]
["Specialty Wraps: Turkey & Cheese",null,"$3.75/each ",null,{"$f":"D59*3.75","v":0}]
["Specialty Wraps: Ham & Cheese ",null,"$3.75/each ",null,0]
["Pasta Buffet (Pasta, Sauce, Breadstick, Salad) ",null,"$5.00/person ",null,{"$f":"D61*5","v":0}]
["Add ONE Meat to Pasta Buffet",null,"$2.00/person ",null,{"$f":"D62*2","v":0}]
["Meatballs",null,"$2.00/person ",null,{"$f":"D63*2","v":0}]
["Chicken Breast",null,"$2.00/person ",null,{"$f":"D64*2","v":0}]
["Pizza (14”, 8 slices) Sausage ",null,"$9.50/pizza ",null,{"$f":"D65*9.5","v":0}]
["Pizza (14”, 8 slices) Pepperoni ",null,"$9.50/pizza ",null,{"$f":"D66*9.5","v":0}]
["Pizza (14”, 8 slices) Vegetable ",null,"$9.50/pizza ",null,0]
["Pizza (14”, 8 slices) Cheese ",null,"$9.50/pizza ",null,0]
["DESSERTS ",null,"PRICE ","QTY. ","TOTAL "]
["Cupcakes (Per Dozen): "]
["Yellow cake, chocolate frosting",null,"$15.00/dozen ",null,{"$f":"D71*15","v":0}]
["Yellow cake, vanilla frosting",null,"$15.00/dozen ",null,{"$f":"D72*15","v":0}]
["Chocolate cake, chocolate frosting",null,"$15.00/dozen ",null,0]
["Chocolate cake, vanilla frosting",null,"$15.00/dozen ",null,0]
["Full Sheet Cake (75 Servings): "]
["Yellow cake, chocolate frosting",null,"$65.00/each ",null,{"$f":"D76*65","v":0}]
["Yellow cake, vanilla frosting",null,"$65.00/each ",null,{"$f":"D77*65","v":0}]
["Chocolate cake, chocolate frosting",null,"$65.00/each ",null,{"$f":"D78*65","v":0}]
["Chocolate cake, vanilla frosting",null,"$65.00/each ",null,{"$f":"D79*65","v":0}]
["Half Sheet Cake (40 Servings):"]
["Yellow cake, chocolate frosting",null,"$40.00/each ",null,{"$f":"D81*40","v":0}]
["Yellow cake, vanilla frosting",null,"$40.00/each ",null,{"$f":"D82*40","v":0}]
["Chocolate cake, chocolate frosting",null,"$40.00/each ",null,{"$f":"D83*40","v":0}]
["Chocolate cake, vanilla frosting",null,"$40.00/each ",null,{"$f":"D84*40","v":0}]
["Writing on Cake: "]
["Ice Cream (3 Gallon Tub, 50 Servings): Vanilla",null,"$38.00/tub",null,{"$f":"D86*38","v":0}]
["Ice Cream (3 Gallon Tub, 50 Servings): Chocolate ",null,"$38.00/tub",null,{"$f":"D87*38","v":0}]
["Add TWO Toppings per 3 gallon tub ordered",null,"$12/50 servings",null,{"$f":"D88*12","v":0}]
[]
["Brownies ",null,"$6.00/dozen ",null,{"$f":"D90*6","v":0}]
["Rice Crispy Treats ",null,"$9.00/dozen ",null,{"$f":"D91*9","v":0}]
["Assorted Cookies ",null,"$7.00/dozen ",null,{"$f":"D92*7","v":0}]
["Frost Your Own Cookies ",null,"$9.00/dozen ",null,{"$f":"D93*9","v":0}]
["Please Write Two Frosting Color Choices:  "]
["BEVERAGES ",null,"PRICE ","QTY. ","TOTAL "]
["Soda (12 oz Can) Selection of Coke Products ",null,"$0.90/each ",null,{"$f":"D96*0.9","v":0}]
["Bottled Juice (12 oz) ",null,"$1.50/each ",null,{"$f":"D97*1.5","v":0}]
["Ice Water ",null,"$2.00/ gallon ",null,{"$f":"D98*2","v":0}]
["Bulk Hot/Cold Beverages (Small vat; 3 gallons - 45 servings, Large Vat:  5 gallons - 75 servings"]
["Cold Beverages: "]
["Orange Blossom Punch",null,"$5.00/gallon ",null,{"$f":"D101*5","v":0}]
["Iced Tea",null,"$5.00/gallon ",null,{"$f":"D102*5","v":0}]
["Lemonade ",null,"$5.00/gallon ",null,{"$f":"D103*5","v":0}]
["Hot Beverages: "]
["Coffee",null,"$8.00/gallon ",null,{"$f":"D105*8","v":0}]
["Decaf Coffee",null,"$8.00/gallon ",null,{"$f":"D106*8","v":0}]
["Tea Bags & Hot Water",null,"$8.00/gallon ",null,{"$f":"D107*8","v":0}]
["Hot Chocolate ",null,"$8.00/gallon ",null,{"$f":"D108*8","v":0}]
["RENTALS ",null,"PRICE ","QTY. ","TOTAL "]
["Linens (Linens are required in event is at Olmsted or Levitt Hall) ",null,"$2.50/each ",null,{"$f":"D110*2.5","v":0}]
["Nacho Cheese Machine with Cheese & Chips (Serves 50, 4 Bags of Chips) ",null,"$35.00 ",null,{"$f":"D111*35","v":0}]
["Popcorn Machine (Must purchase popcorn kit(s) separately) ",null,"$25.00 ",null,{"$f":"D112*25","v":0}]
["Popcorn Kit (Popcorn, oil and bags—serves 20) ",null,"$3.00 ",null,{"$f":"D113*3","v":0}]
[]
[null,null,null,"TOTAL",{"$f":"SUM(E34:E114)","v":0}]